fUSD/lending_fUSD_20260514
["ID","MTS","AMOUNT","RATE_DAILY","PERIOD"]
[422245643,1778763041000,-8618.78079084,0.00010989,2]
[422245632,1778763041000,-151.0,0.00010959,2]
[422245628,1778763041000,-150.0,0.00010959,2]
[422245716,1778763042000,-150.0,0.00011688,2]
[422245715,1778763042000,-250.30102013,0.00011688,2]
[422245714,1778763042000,-150.0,0.00011688,2]
[422245711,1778763042000,-306.30111708,0.000114,2]
[422245712,1778763042000,-166.11,0.00011604,2]
[422245708,1778763042000,-67123.04,0.00011281,2]
[422245709,1778763042000,-9999.99,0.00011281,2]
[422245707,1778763042000,-7836.36,0.00011281,2]
[422245706,1778763042000,-3871.08,0.00011281,2]
[422245702,1778763042000,-999.99,0.00011281,2]
[422245701,1778763042000,-11235.18,0.00011281,2]
[422245710,1778763042000,-8778.86230413,0.00011296,2]
[422245713,1778763042000,-150.0,0.00011688,2]
[422245744,1778763042000,-150.0,0.0001177,2]
[422245718,1778763042000,-150.0,0.00011688,2]
[422245720,1778763042000,-150.0,0.00011688,2]
[422245732,1778763042000,-150.0,0.00011688,2]
[422245725,1778763042000,-150.0,0.00011688,2]
[422245733,1778763042000,-150.0,0.00011708,2]
[422245728,1778763042000,-150.0,0.00011688,2]
[422245735,1778763042000,-1000.0,0.00011716,2]
[422245746,1778763042000,-150.0,0.00011791,2]
[422245739,1778763042000,-150.0,0.0001175,2]
[422245737,1778763042000,-150.0,0.00011729,2]
[422245738,1778763042000,-187.85,0.00011741,2]
[422245740,1778763042000,-1000.0,0.00011753,2]
[422245742,1778763042000,-150.0,0.00011769,2]
[422245705,1778763042000,-4110.79,0.00011281,2]
[422245722,1778763042000,-152.22223688,0.00011688,2]
[422245704,1778763042000,-7643.11,0.00011281,2]
[422245681,1778763042000,-27885.4066155,0.00011099,2]
[422245700,1778763042000,-150.99,0.00011281,2]
[422245745,1778763042000,-150.0,0.00011788,2]
[422245668,1778763042000,-16349.98002433,0.00011099,2]
[422245667,1778763042000,-16349.98002433,0.00011099,2]
[422245669,1778763042000,-16349.98002433,0.00011099,2]
[422245671,1778763042000,-16349.98002433,0.00011099,2]
[422245670,1778763042000,-16349.98002433,0.00011099,2]
[422245674,1778763042000,-27885.40661551,0.00011099,2]
[422245675,1778763042000,-27885.4066155,0.00011099,2]
[422245676,1778763042000,-27885.4066155,0.00011099,2]
[422245672,1778763042000,-16349.98002433,0.00011099,2]
[422245673,1778763042000,-16349.98002433,0.00011099,2]
[422245677,1778763042000,-27885.4066155,0.00011099,2]
[422245679,1778763042000,-27885.4066155,0.00011099,2]
[422245680,1778763042000,-27885.4066155,0.00011099,2]
[422245678,1778763042000,-27885.4066155,0.00011099,2]
[422245682,1778763042000,-27885.4066155,0.00011099,2]
[422245684,1778763042000,-255.0,0.0001111,2]
[422245683,1778763042000,-27885.4066155,0.00011099,2]
[422245685,1778763042000,-1680.0,0.0001112,2]
[422245690,1778763042000,-160.0,0.00011238,2]
[422245687,1778763042000,-208.3309892,0.00011225,2]
[422245692,1778763042000,-16706.2,0.00011281,2]
[422245686,1778763042000,-214.95940296,0.00011225,2]
[422245688,1778763042000,-150.0,0.00011233,2]
[422245691,1778763042000,-166.11,0.00011265,2]
[422245693,1778763042000,-4646.53,0.00011281,2]
[422245695,1778763042000,-14888.69,0.00011281,2]
[422245698,1778763042000,-850.66,0.00011281,2]
[422245697,1778763042000,-4999.99,0.00011281,2]
[422245699,1778763042000,-299.99,0.00011281,2]
[422245741,1778763042000,-150.0,0.0001176,2]
[422245703,1778763042000,-9999.99,0.00011281,2]
[422245747,1778763042000,-150.0,0.00011811,2]
[422245783,1778763042000,-150.0,0.00012121,2]
[422245782,1778763042000,-150.0,0.000121,2]
[422245779,1778763042000,-150.0,0.00012079,2]
[422245784,1778763042000,-150.0,0.00012121,2]
[422245785,1778763042000,-150.0,0.00012141,2]
[422245786,1778763042000,-150.0,0.00012162,2]
[422245787,1778763042000,-150.0,0.00012175,2]
[422245790,1778763042000,-150.0,0.00012193,2]
[422245792,1778763042000,-150.0,0.00012207,2]
[422245789,1778763042000,-150.0,0.00012187,2]
[422245793,1778763042000,-433.0,0.00012212,2]
[422245791,1778763042000,-150.0,0.00012203,2]
[422245788,1778763042000,-150.0,0.00012182,2]
[422245795,1778763042000,-2351.0,0.00012232,2]
[422245796,1778763042000,-150.0,0.00012244,2]
[422245794,1778763042000,-150.0,0.00012224,2]
[422245797,1778763042000,-150.0,0.00012256,2]
[422245799,1778763042000,-150.0,0.00012265,2]
[422245798,1778763042000,-150.0,0.00012265,2]
[422245800,1778763042000,-150.0,0.00012285,2]
[422245801,1778763042000,-150.0,0.00012287,2]
[422245802,1778763042000,-150.0,0.00012306,2]
[422245804,1778763042000,-687.89,0.00012329,2]
[422245805,1778763042000,-150.0,0.00012337,2]
[422245803,1778763042000,-150.0,0.00012327,2]
[422245809,1778763042000,-150.0,0.00012337,2]
[422245810,1778763042000,-150.0,0.00012347,2]
[422245806,1778763042000,-150.0,0.00012337,2]
[422245748,1778763042000,-150.0,0.00011818,2]
[422245780,1778763042000,-150.0,0.00012087,2]
[422245781,1778763042000,-150.0,0.00012093,2]
[422245807,1778763042000,-150.0,0.00012337,2]
[422245808,1778763042000,-150.0,0.00012337,2]
[422245778,1778763042000,-150.0,0.00012077,2]
[422245749,1778763042000,-150.0,0.00011832,2]
[422245750,1778763042000,-150.0,0.00011832,2]
[422245751,1778763042000,-4273.170321,0.00011845,2]
[422245753,1778763042000,-150.0,0.00011853,2]
[422245756,1778763042000,-150.0,0.00011894,2]
[422245758,1778763042000,-150.0,0.00011904,2]
[422245754,1778763042000,-150.0,0.00011873,2]
[422245757,1778763042000,-3128.9481739,0.000119,2]
[422245755,1778763042000,-150.0,0.00011887,2]
[422245760,1778763042000,-150.0,0.00011931,2]
[422245759,1778763042000,-150.0,0.00011914,2]
[422245761,1778763042000,-150.0,0.00011935,2]
[422245762,1778763042000,-166.11,0.00011942,2]
[422245752,1778763042000,-150.0,0.0001185,2]
[422245763,1778763042000,-150.0,0.00011947,2]
[422245764,1778763042000,-150.0,0.00011956,2]
[422245776,1778763042000,-13006.65,0.00012055,2]
[422245775,1778763042000,-150.0,0.00012048,2]
[422245774,1778763042000,-150.0,0.00012038,2]
[422245771,1778763042000,-150.0,0.00012012,2]
[422245772,1778763042000,-150.0,0.00012012,2]
[422245777,1778763042000,-150.0,0.00012059,2]
[422245770,1778763042000,-150.0,0.00011997,2]
[422245765,1778763042000,-3753.61,0.00011975,2]
[422245767,1778763042000,-150.0,0.00011976,2]
[422245769,1778763042000,-150.0,0.00011987,2]
[422245773,1778763042000,-150.0,0.00012017,2]
[422245768,1778763042000,-2000.0,0.00011979,2]
[422245766,1778763042000,-150.0,0.00011976,2]
[422245853,1778763043000,-150.0,0.00012698,2]
[422245842,1778763043000,-150.0,0.00012597,2]
[422245844,1778763043000,-150.0,0.00012626,2]
[422245840,1778763043000,-150.0,0.00012587,2]
[422245845,1778763043000,-150.0,0.00012636,2]
[422245848,1778763043000,-150.0,0.00012662,2]
[422245846,1778763043000,-150.0,0.00012656,2]
[422245849,1778763043000,-150.0,0.00012662,2]
[422245851,1778763043000,-150.0,0.00012687,2]
[422245850,1778763043000,-150.0,0.00012677,2]
[422245843,1778763043000,-150.0,0.00012615,2]
[422245847,1778763043000,-200.0,0.00012659,2]
[422245859,1778763043000,-150.0,0.0001277,2]
[422245854,1778763043000,-150.0,0.00012718,2]
[422245856,1778763043000,-150.0,0.00012739,2]
[422245864,1778763043000,-1528.0,0.000128,2]
[422245863,1778763043000,-150.0,0.00012787,2]
[422245858,1778763043000,-150.0,0.0001276,2]
[422245855,1778763043000,-150.0,0.00012727,2]
[422245857,1778763043000,-150.0,0.00012743,2]
[422245861,1778763043000,-150.0,0.0001278,2]
[422245866,1778763043000,-150.0,0.00012821,2]
[422245867,1778763043000,-150.0,0.00012824,2]
[422245841,1778763043000,-150.0,0.00012595,2]
[422245865,1778763043000,-150.0,0.00012801,2]
[422245852,1778763043000,-150.0,0.00012698,2]
[422245838,1778763043000,-150.0,0.00012574,2]
[422245823,1778763043000,-150.0,0.00012487,2]
[422245837,1778763043000,-8778.86230413,0.00012564,2]
[422245869,1778763043000,-150.0,0.00012842,2]
[422245811,1778763043000,-150.0,0.00012368,2]
[422245814,1778763043000,-150.0,0.00012409,2]
[422245813,1778763043000,-150.0,0.00012389,2]
[422245816,1778763043000,-1402.0,0.00012416,5]
[422245815,1778763043000,-150.0,0.00012409,2]
[422245817,1778763043000,-150.0,0.00012418,2]
[422245818,1778763043000,-150.0,0.0001243,2]
[422245819,1778763043000,-150.0,0.0001245,2]
[422245820,1778763043000,-150.0,0.00012467,2]
[422245821,1778763043000,-150.0,0.00012471,2]
[422245822,1778763043000,-150.0,0.00012481,2]
[422245824,1778763043000,-150.0,0.00012492,2]
[422245826,1778763043000,-150.0,0.00012512,2]
[422245825,1778763043000,-150.0,0.00012499,2]
[422245827,1778763043000,-926.0,0.00012519,2]
[422245828,1778763043000,-625.0,0.00012519,2]
[422245829,1778763043000,-3542.0,0.00012519,2]
[422245833,1778763043000,-219.0,0.00012519,2]
[422245830,1778763043000,-150.0,0.00012519,2]
[422245831,1778763043000,-1270.0,0.00012519,2]
[422245832,1778763043000,-1233.176,0.00012519,2]
[422245836,1778763043000,-150.0,0.00012553,2]
[422245834,1778763043000,-150.0,0.00012533,2]
[422245835,1778763043000,-150.0,0.00012553,2]
[422245839,1778763043000,-150.0,0.0001258,2]
[422245874,1778763043000,-150.0,0.00012886,2]
[422245812,1778763043000,-150.0,0.00012387,2]
[422245870,1778763043000,-150.0,0.00012856,2]
[422245903,1778763043000,-2000.0,0.00013177,2]
[422245902,1778763043000,-1000.0,0.00013071,2]
[422245904,1778763043000,-171.6,0.00013253,2]
[422245905,1778763043000,-187.84,0.00013273,2]
[422245906,1778763043000,-171.6,0.00013279,2]
[422245907,1778763043000,-496.38,0.00013314,2]
[422245908,1778763043000,-438.11190998,0.00013314,2]
[422245909,1778763043000,-150.0,0.0001334,2]
[422245911,1778763043000,-169.08,0.00013363,2]
[422245910,1778763043000,-169.08,0.00013363,2]
[422245912,1778763043000,-584.087981,0.00013364,2]
[422245916,1778763043000,-736.0,0.00013415,2]
[422245901,1778763043000,-151.0,0.00013004,2]
[422245918,1778763043000,-3292.0,0.00013455,2]
[422245914,1778763043000,-584.087981,0.00013364,2]
[422245917,1778763043000,-820.64,0.00013415,2]
[422245915,1778763043000,-584.087981,0.00013364,2]
[422245920,1778763043000,-1000.0,0.000135,2]
[422245919,1778763043000,-150.0,0.00013474,2]
[422245922,1778763043000,-729.541633,0.0001367,2]
[422245925,1778763043000,-500.0,0.00013698,2]
[422245923,1778763043000,-59569.739559,0.0001367,2]
[422245921,1778763043000,-150.0,0.00013609,2]
[422245924,1778763043000,-20965.95,0.00013671,2]
[422245927,1778763043000,-500.0,0.00013698,2]
[422245868,1778763043000,-150.0,0.00012842,2]
[422245913,1778763043000,-584.087981,0.00013364,2]
[422245899,1778763043000,-151.0,0.00013004,2]
[422245926,1778763043000,-241.89256492,0.00013698,2]
[422245898,1778763043000,-839.370064,0.00013004,2]
[422245872,1778763043000,-275.11,0.00012877,2]
[422245871,1778763043000,-150.0,0.00012863,2]
[422245873,1778763043000,-150.0,0.00012883,2]
[422245875,1778763043000,-150.0,0.00012904,2]
[422245877,1778763043000,-6737.04293985,0.00012913,2]
[422245878,1778763043000,-150.0,0.00012914,2]
[422245876,1778763043000,-150.0,0.00012905,2]
[422245900,1778763043000,-151.0,0.00013004,2]
[422245881,1778763043000,-2868.46383252,0.00012941,2]
[422245880,1778763043000,-1619.01104384,0.00012926,2]
[422245884,1778763043000,-150.00000001,0.00012986,2]
[422245888,1778763043000,-226.92243394,0.00012986,2]
[422245882,1778763043000,-150.0,0.00012945,2]
[422245879,1778763043000,-150.0,0.00012924,2]
[422245886,1778763043000,-277.9039708,0.00012986,2]
[422245885,1778763043000,-150.0,0.00012986,2]
[422245896,1778763043000,-839.370064,0.00013004,2]
[422245895,1778763043000,-839.370064,0.00013004,2]
[422245892,1778763043000,-151.0,0.00013004,2]
[422245894,1778763043000,-175.70569,0.00013004,2]
[422245893,1778763043000,-151.0,0.00013004,2]
[422245891,1778763043000,-265980.6042015,0.00013004,2]
[422245889,1778763043000,-205.15155922,0.00012986,2]
[422245890,1778763043000,-288.37111373,0.00012986,2]
[422245883,1778763043000,-150.0,0.00012966,2]
[422245887,1778763043000,-294.95484027,0.00012986,2]
[422245897,1778763043000,-839.370064,0.00013004,2]
[422245965,1778763044000,-500.0,0.00013698,2]
[422245968,1778763044000,-500.0,0.00013698,2]
[422245967,1778763044000,-500.0,0.00013698,2]
[422245966,1778763044000,-500.0,0.00013698,2]
[422245964,1778763044000,-500.0,0.00013698,2]
[422245958,1778763044000,-528.72285932,0.00013698,2]
[422245961,1778763044000,-500.0,0.00013698,2]
[422245962,1778763044000,-500.0,0.00013698,2]
[422245960,1778763044000,-500.0,0.00013698,2]
[422245957,1778763044000,-500.0,0.00013698,2]
[422245963,1778763044000,-500.0,0.00013698,2]
[422245973,1778763044000,-500.0,0.00013698,2]
[422245986,1778763044000,-500.0,0.00013698,2]
[422245975,1778763044000,-500.0,0.00013698,2]
[422245971,1778763044000,-542.29642793,0.00013698,2]
[422245969,1778763044000,-500.0,0.00013698,2]
[422245970,1778763044000,-500.0,0.00013698,2]
[422245972,1778763044000,-500.0,0.00013698,2]
[422245976,1778763044000,-500.0,0.00013698,2]
[422245977,1778763044000,-500.0,0.00013698,2]
[422245978,1778763044000,-500.0,0.00013698,2]
[422245981,1778763044000,-500.0,0.00013698,2]
[422245979,1778763044000,-500.0,0.00013698,2]
[422245980,1778763044000,-500.0,0.00013698,2]
[422245959,1778763044000,-500.0,0.00013698,2]
[422245974,1778763044000,-500.0,0.00013698,2]
[422245956,1778763044000,-500.0,0.00013698,2]
[422245943,1778763044000,-500.0,0.00013698,2]
[422245953,1778763044000,-500.0,0.00013698,2]
[422245928,1778763044000,-500.0,0.00013698,2]
[422245929,1778763044000,-500.0,0.00013698,2]
[422245931,1778763044000,-500.0,0.00013698,2]
[422245930,1778763044000,-252.89001663,0.00013698,2]
[422245933,1778763044000,-500.0,0.00013698,2]
[422245935,1778763044000,-500.0,0.00013698,2]
[422245934,1778763044000,-500.0,0.00013698,2]
[422245936,1778763044000,-500.0,0.00013698,2]
[422245932,1778763044000,-500.0,0.00013698,2]
[422245940,1778763044000,-500.0,0.00013698,2]
[422245937,1778763044000,-500.0,0.00013698,2]
[422245941,1778763044000,-500.0,0.00013698,2]
[422245938,1778763044000,-457.83735214,0.00013698,2]
[422245939,1778763044000,-500.0,0.00013698,2]
[422245942,1778763044000,-500.0,0.00013698,2]
[422245944,1778763044000,-500.0,0.00013698,2]
[422245946,1778763044000,-500.0,0.00013698,2]
[422245947,1778763044000,-500.0,0.00013698,2]
[422245945,1778763044000,-500.0,0.00013698,2]
[422245948,1778763044000,-500.0,0.00013698,2]
[422245950,1778763044000,-500.0,0.00013698,2]
[422245949,1778763044000,-500.0,0.00013698,2]
[422245952,1778763044000,-500.0,0.00013698,2]
[422245951,1778763044000,-261.68982406,0.00013698,2]
[422245954,1778763044000,-500.0,0.00013698,2]
[422245955,1778763044000,-500.0,0.00013698,2]
[422245985,1778763044000,-500.0,0.00013698,2]
[422245982,1778763044000,-500.0,0.00013698,2]
[422245984,1778763044000,-500.0,0.00013698,2]
[422246015,1778763044000,-500.0,0.00013698,2]
[422246017,1778763044000,-500.0,0.00013698,2]
[422246022,1778763044000,-500.0,0.00013698,2]
[422246021,1778763044000,-500.0,0.00013698,2]
[422246020,1778763044000,-500.0,0.00013698,2]
[422246019,1778763044000,-500.0,0.00013698,2]
[422246024,1778763044000,-500.0,0.00013698,2]
[422246023,1778763044000,-500.0,0.00013698,2]
[422246026,1778763044000,-500.0,0.00013698,2]
[422246027,1778763044000,-500.0,0.00013698,2]
[422246028,1778763044000,-500.0,0.00013698,2]
[422246030,1778763044000,-500.0,0.00013698,2]
[422246029,1778763044000,-500.0,0.00013698,2]
[422246031,1778763044000,-500.0,0.00013698,2]
[422246033,1778763044000,-500.0,0.00013698,2]
[422246032,1778763044000,-500.0,0.00013698,2]
[422246034,1778763044000,-500.0,0.00013698,2]
[422246035,1778763044000,-500.0,0.00013698,2]
[422246036,1778763044000,-168.19611031,0.00013698,2]
[422246038,1778763044000,-500.0,0.00013698,2]
[422246037,1778763044000,-500.0,0.00013698,2]
[422246040,1778763044000,-500.0,0.00013698,2]
[422246039,1778763044000,-500.0,0.00013698,2]
[422246041,1778763044000,-500.0,0.00013698,2]
[422245983,1778763044000,-500.0,0.00013698,2]
[422246014,1778763044000,-500.0,0.00013698,2]
[422246016,1778763044000,-500.0,0.00013698,2]
[422246025,1778763044000,-500.0,0.00013698,2]
[422246013,1778763044000,-500.0,0.00013698,2]
[422245987,1778763044000,-500.0,0.00013698,2]
[422246018,1778763044000,-497.7,0.00013698,2]
[422245989,1778763044000,-512.14862258,0.00013698,2]
[422245988,1778763044000,-500.0,0.00013698,2]
[422245990,1778763044000,-500.0,0.00013698,2]
[422245991,1778763044000,-500.0,0.00013698,2]
[422245992,1778763044000,-500.0,0.00013698,2]
[422245994,1778763044000,-500.0,0.00013698,2]
[422245996,1778763044000,-500.0,0.00013698,2]
[422245995,1778763044000,-500.0,0.00013698,2]
[422245997,1778763044000,-500.0,0.00013698,2]
[422246000,1778763044000,-500.0,0.00013698,2]
[422245999,1778763044000,-500.0,0.00013698,2]
[422245993,1778763044000,-500.0,0.00013698,2]
[422246010,1778763044000,-500.0,0.00013698,2]
[422246012,1778763044000,-500.0,0.00013698,2]
[422245998,1778763044000,-500.0,0.00013698,2]
[422246009,1778763044000,-500.0,0.00013698,2]
[422246008,1778763044000,-500.0,0.00013698,2]
[422246004,1778763044000,-500.0,0.00013698,2]
[422246007,1778763044000,-500.0,0.00013698,2]
[422246011,1778763044000,-500.0,0.00013698,2]
[422246005,1778763044000,-391.83045184,0.00013698,2]
[422246003,1778763044000,-500.0,0.00013698,2]
[422246002,1778763044000,-500.0,0.00013698,2]
[422246001,1778763044000,-500.0,0.00013698,2]
[422246006,1778763044000,-509.2875148,0.00013698,2]
[422246081,1778763045000,-500.0,0.00013698,2]
[422246083,1778763045000,-500.0,0.00013698,2]
[422246084,1778763045000,-353.4207141,0.00013698,2]
[422246082,1778763045000,-500.0,0.00013698,2]
[422246080,1778763045000,-500.0,0.00013698,2]
[422246097,1778763045000,-571.05,0.00013698,2]
[422246077,1778763045000,-500.0,0.00013698,2]
[422246076,1778763045000,-500.0,0.00013698,2]
[422246078,1778763045000,-500.0,0.00013698,2]
[422246079,1778763045000,-619.09086971,0.00013698,2]
[422246086,1778763045000,-500.0,0.00013698,2]
[422246073,1778763045000,-236.51228085,0.00013698,2]
[422246085,1778763045000,-500.0,0.00013698,2]
[422246101,1778763045000,-571.05,0.00013698,2]
[422246090,1778763045000,-571.05,0.00013698,2]
[422246087,1778763045000,-507.15627863,0.00013698,2]
[422246088,1778763045000,-571.05,0.00013698,2]
[422246089,1778763045000,-571.05,0.00013698,2]
[422246092,1778763045000,-571.05,0.00013698,2]
[422246093,1778763045000,-571.05,0.00013698,2]
[422246095,1778763045000,-571.05,0.00013698,2]
[422246094,1778763045000,-571.05,0.00013698,2]
[422246096,1778763045000,-571.05,0.00013698,2]
[422246099,1778763045000,-571.05,0.00013698,2]
[422246098,1778763045000,-571.05,0.00013698,2]
[422246072,1778763045000,-500.0,0.00013698,2]
[422246091,1778763045000,-571.05,0.00013698,2]
[422246075,1778763045000,-500.0,0.00013698,2]
[422246043,1778763045000,-500.0,0.00013698,2]
[422246070,1778763045000,-500.0,0.00013698,2]
[422246042,1778763045000,-500.0,0.00013698,2]
[422246044,1778763045000,-500.0,0.00013698,2]
[422246046,1778763045000,-500.0,0.00013698,2]
[422246045,1778763045000,-500.0,0.00013698,2]
[422246047,1778763045000,-500.0,0.00013698,2]
[422246056,1778763045000,-500.0,0.00013698,2]
[422246048,1778763045000,-500.0,0.00013698,2]
[422246049,1778763045000,-500.0,0.00013698,2]
[422246050,1778763045000,-500.0,0.00013698,2]
[422246051,1778763045000,-500.0,0.00013698,2]
[422246053,1778763045000,-277.6,0.00013698,2]
[422246054,1778763045000,-500.0,0.00013698,2]
[422246055,1778763045000,-500.0,0.00013698,2]
[422246052,1778763045000,-500.0,0.00013698,2]
[422246058,1778763045000,-500.0,0.00013698,2]
[422246057,1778763045000,-500.0,0.00013698,2]
[422246059,1778763045000,-500.0,0.00013698,2]
[422246061,1778763045000,-500.0,0.00013698,2]
[422246063,1778763045000,-500.0,0.00013698,2]
[422246062,1778763045000,-375.38526683,0.00013698,2]
[422246065,1778763045000,-500.0,0.00013698,2]
[422246064,1778763045000,-500.0,0.00013698,2]
[422246068,1778763045000,-500.0,0.00013698,2]
[422246060,1778763045000,-500.0,0.00013698,2]
[422246067,1778763045000,-500.0,0.00013698,2]
[422246066,1778763045000,-500.0,0.00013698,2]
[422246069,1778763045000,-500.0,0.00013698,2]
[422246071,1778763045000,-500.0,0.00013698,2]
[422246100,1778763045000,-571.05,0.00013698,2]
[422246074,1778763045000,-500.0,0.00013698,2]
[422246103,1778763045000,-571.05,0.00013698,2]
[422246137,1778763045000,-500.0,0.00013698,2]
[422246136,1778763045000,-500.0,0.00013698,2]
[422246135,1778763045000,-500.0,0.00013698,2]
[422246138,1778763045000,-500.0,0.00013698,2]
[422246140,1778763045000,-500.0,0.00013698,2]
[422246139,1778763045000,-500.0,0.00013698,2]
[422246142,1778763045000,-500.0,0.00013698,2]
[422246143,1778763045000,-500.0,0.00013698,2]
[422246145,1778763045000,-500.0,0.00013698,2]
[422246146,1778763045000,-524.1684879,0.00013698,2]
[422246154,1778763045000,-500.0,0.00013698,2]
[422246147,1778763045000,-500.0,0.00013698,2]
[422246148,1778763045000,-249.29936447,0.00013698,2]
[422246151,1778763045000,-500.0,0.00013698,2]
[422246144,1778763045000,-500.0,0.00013698,2]
[422246153,1778763045000,-500.0,0.00013698,2]
[422246152,1778763045000,-524.74495617,0.00013698,2]
[422246149,1778763045000,-500.0,0.00013698,2]
[422246150,1778763045000,-500.0,0.00013698,2]
[422246155,1778763045000,-500.0,0.00013698,2]
[422246156,1778763045000,-500.0,0.00013698,2]
[422246159,1778763045000,-500.0,0.00013698,2]
[422246157,1778763045000,-500.0,0.00013698,2]
[422246161,1778763045000,-500.0,0.00013698,2]
[422246160,1778763045000,-500.0,0.00013698,2]
[422246162,1778763045000,-500.0,0.00013698,2]
[422246104,1778763045000,-571.05,0.00013698,2]
[422246134,1778763045000,-500.0,0.00013698,2]
[422246132,1778763045000,-500.0,0.00013698,2]
[422246158,1778763045000,-506.53569257,0.00013698,2]
[422246133,1778763045000,-500.0,0.00013698,2]
[422246141,1778763045000,-500.0,0.00013698,2]
[422246102,1778763045000,-571.05,0.00013698,2]
[422246106,1778763045000,-571.05,0.00013698,2]
[422246108,1778763045000,-571.05,0.00013698,2]
[422246107,1778763045000,-571.05,0.00013698,2]
[422246113,1778763045000,-500.0,0.00013698,2]
[422246111,1778763045000,-571.23232681,0.00013698,2]
[422246110,1778763045000,-571.05,0.00013698,2]
[422246109,1778763045000,-571.05,0.00013698,2]
[422246114,1778763045000,-500.0,0.00013698,2]
[422246116,1778763045000,-500.0,0.00013698,2]
[422246112,1778763045000,-500.0,0.00013698,2]
[422246117,1778763045000,-500.0,0.00013698,2]
[422246115,1778763045000,-500.0,0.00013698,2]
[422246105,1778763045000,-571.05,0.00013698,2]
[422246129,1778763045000,-500.0,0.00013698,2]
[422246118,1778763045000,-500.0,0.00013698,2]
[422246130,1778763045000,-520.0293993,0.00013698,2]
[422246126,1778763045000,-500.0,0.00013698,2]
[422246124,1778763045000,-500.0,0.00013698,2]
[422246127,1778763045000,-500.0,0.00013698,2]
[422246125,1778763045000,-500.0,0.00013698,2]
[422246122,1778763045000,-500.0,0.00013698,2]
[422246120,1778763045000,-500.0,0.00013698,2]
[422246123,1778763045000,-500.0,0.00013698,2]
[422246128,1778763045000,-500.0,0.00013698,2]
[422246131,1778763045000,-503.35448234,0.00013698,2]
[422246119,1778763045000,-500.0,0.00013698,2]
[422246121,1778763045000,-500.0,0.00013698,2]
[422246205,1778763046000,-200.0,0.00013699,2]
[422246192,1778763046000,-519.62,0.00013699,2]
[422246189,1778763046000,-425.186581,0.00013699,2]
[422246194,1778763046000,-726.414866,0.00013699,2]
[422246200,1778763046000,-726.414866,0.00013699,2]
[422246202,1778763046000,-726.414866,0.00013699,2]
[422246204,1778763046000,-2500.0,0.00013699,2]
[422246203,1778763046000,-726.414866,0.00013699,2]
[422246210,1778763046000,-4151.07820803,0.00013735,2]
[422246191,1778763046000,-425.186581,0.00013699,2]
[422246195,1778763046000,-726.414866,0.00013699,2]
[422246211,1778763046000,-150.0,0.00013744,2]
[422246206,1778763046000,-268.0,0.00013699,2]
[422246207,1778763046000,-284.22,0.000137,2]
[422246209,1778763046000,-150.0,0.00013723,2]
[422246208,1778763046000,-163.16,0.000137,2]
[422246212,1778763046000,-175.43731741,0.00013772,2]
[422246213,1778763046000,-150.0,0.00013775,2]
[422246215,1778763046000,-166.66,0.00013836,2]